[Event "Early-Titled-Tuesday-Blitz-March-12-2024"]
[Site "Chess.com"]
[Date "2024.03.12"]
[Round "9"]
[White "rikchessmx"]
[Black "Rainbow2014"]
[Result "0-1"]
[WhiteElo "2301"]
[BlackElo "2427"]
[TimeControl "180+1"]
[EndTime "9:42:18 PDT"]
[Termination "Rainbow2014 won by checkmate"]

1. e4 {[%clk 0:03:00.9]} 1... c5 {[%clk 0:01:38.7]} 2. Nf3 {[%clk 0:02:56.9]}
2... d6 {[%clk 0:01:37.6]} 3. d4 {[%clk 0:02:56.9]} 3... cxd4 {[%clk 0:01:37.6]}
4. Nxd4 {[%clk 0:02:57.8]} 4... Nf6 {[%clk 0:01:38]} 5. Nc3 {[%clk 0:02:58]}
5... a6 {[%clk 0:01:38.4]} 6. f4 {[%clk 0:02:58.5]} 6... e5 {[%clk 0:01:35.2]}
7. Nf3 {[%clk 0:02:57.5]} 7... Nbd7 {[%clk 0:01:31.4]} 8. Bd3 {[%clk 0:02:56.2]}
8... Be7 {[%clk 0:01:29.8]} 9. O-O {[%clk 0:02:55.1]} 9... O-O {[%clk
0:01:30.4]} 10. Kh1 {[%clk 0:02:55.4]} 10... b5 {[%clk 0:01:30.7]} 11. a3 {[%clk
0:02:54.8]} 11... Bb7 {[%clk 0:01:30.5]} 12. Qe1 {[%clk 0:02:55.1]} 12... Re8
{[%clk 0:01:28.3]} 13. fxe5 {[%clk 0:02:55]} 13... dxe5 {[%clk 0:01:28.1]} 14.
Bg5 {[%clk 0:02:53.8]} 14... h6 {[%clk 0:01:17.4]} 15. Bh4 {[%clk 0:02:53.2]}
15... Nh5 {[%clk 0:01:02.1]} 16. Bxe7 {[%clk 0:02:52.5]} 16... Qxe7 {[%clk
0:01:02.4]} 17. Nh4 {[%clk 0:02:48]} 17... Nf4 {[%clk 0:00:57.4]} 18. Nf5 {[%clk
0:02:47.8]} 18... Qg5 {[%clk 0:00:50.9]} 19. g3 {[%clk 0:02:47]} 19... Nxd3
{[%clk 0:00:47.2]} 20. cxd3 {[%clk 0:02:47.9]} 20... Nf6 {[%clk 0:00:43]} 21.
Qe3 {[%clk 0:02:43.5]} 21... Qxe3 {[%clk 0:00:41.4]} 22. Nxe3 {[%clk 0:02:43.3]}
22... Red8 {[%clk 0:00:35.9]} 23. Rxf6 {[%clk 0:02:42.7]} 23... gxf6 {[%clk
0:00:35.5]} 24. Ned5 {[%clk 0:02:43]} 24... Bxd5 {[%clk 0:00:35.2]} 25. Nxd5
{[%clk 0:02:42.8]} 25... Kg7 {[%clk 0:00:32]} 26. Rf1 {[%clk 0:02:40.6]} 26...
Rd6 {[%clk 0:00:31]} 27. Kg2 {[%clk 0:02:31.9]} 27... Rc8 {[%clk 0:00:29.4]} 28.
Rf2 {[%clk 0:02:31]} 28... Rc5 {[%clk 0:00:26]} 29. Ne7 {[%clk 0:02:23.4]} 29...
Rxd3 {[%clk 0:00:21.1]} 30. Nf5+ {[%clk 0:02:23.5]} 30... Kh7 {[%clk 0:00:17.8]}
31. Ne7 {[%clk 0:02:23.2]} 31... Rd6 {[%clk 0:00:15.9]} 32. Nf5 {[%clk
0:02:21.5]} 32... Rdc6 {[%clk 0:00:15.8]} 33. Kh3 {[%clk 0:02:20.3]} 33... Rc2
{[%clk 0:00:15.1]} 34. Rf1 {[%clk 0:02:14.7]} 34... Rxb2 {[%clk 0:00:15.3]} 35.
Nh4 {[%clk 0:02:10.6]} 35... h5 {[%clk 0:00:14.5]} 36. Rf5 {[%clk 0:02:09.7]}
36... Kh6 {[%clk 0:00:10.7]} 37. Rf1 {[%clk 0:02:07.4]} 37... a5 {[%clk
0:00:07.4]} 38. Nf5+ {[%clk 0:02:04.7]} 38... Kh7 {[%clk 0:00:07.8]} 39. Ne7
{[%clk 0:02:04.9]} 39... Re6 {[%clk 0:00:06.7]} 40. Nd5 {[%clk 0:02:04.5]} 40...
Rb3 {[%clk 0:00:05.6]} 41. Nxf6+ {[%clk 0:02:02.7]} 41... Kg6 {[%clk 0:00:06.1]}
42. Nd5 {[%clk 0:02:01.9]} 42... Rxa3 {[%clk 0:00:06.1]} 43. Rb1 {[%clk
0:02:01.8]} 43... b4 {[%clk 0:00:06.4]} 44. Kh4 {[%clk 0:02:02.1]} 44... Rd3
{[%clk 0:00:06.5]} 45. h3 {[%clk 0:02:01.4]} 45... Rd4 {[%clk 0:00:06.8]} 46.
Re1 {[%clk 0:01:58.8]} 46... a4 {[%clk 0:00:06]} 47. g4 {[%clk 0:01:56.3]} 47...
hxg4 {[%clk 0:00:05.9]} 48. hxg4 {[%clk 0:01:56.1]} 48... b3 {[%clk 0:00:06.6]}
49. Kg3 {[%clk 0:01:54.9]} 49... b2 {[%clk 0:00:07]} 50. Rb1 {[%clk 0:01:54.9]}
50... a3 {[%clk 0:00:07.6]} 51. Nb4 {[%clk 0:01:55.2]} 51... Rxe4 {[%clk
0:00:07.4]} 52. Na2 {[%clk 0:01:54.7]} 52... Rc4 {[%clk 0:00:07.4]} 53. Kf3
{[%clk 0:01:54.1]} 53... Rb6 {[%clk 0:00:07.7]} 54. Ke3 {[%clk 0:01:53.2]} 54...
Rb3+ {[%clk 0:00:08.3]} 55. Kd2 {[%clk 0:01:53.1]} 55... Rd4+ {[%clk 0:00:08.6]}
56. Kc2 {[%clk 0:01:53]} 56... Rdd3 {[%clk 0:00:09.2]} 57. Re1 {[%clk
0:01:48.9]} 57... f5 {[%clk 0:00:08.7]} 58. gxf5+ {[%clk 0:01:46.8]} 58... Kxf5
{[%clk 0:00:09]} 59. Rf1+ {[%clk 0:01:47.7]} 59... Ke6 {[%clk 0:00:09.5]} 60.
Rb1 {[%clk 0:01:47.4]} 60... e4 {[%clk 0:00:09.5]} 61. Re1 {[%clk 0:01:46.1]}
61... b1=Q+ {[%clk 0:00:09.3]} 62. Rxb1 {[%clk 0:01:44.2]} 62... Rxb1 {[%clk
0:00:10.2]} 63. Kxb1 {[%clk 0:01:44.6]} 63... Ke5 {[%clk 0:00:10.4]} 64. Kc2
{[%clk 0:01:45.5]} 64... Kf4 {[%clk 0:00:10.8]} 65. Nc1 {[%clk 0:01:45.9]} 65...
Rh3 {[%clk 0:00:10.4]} 66. Nb3 {[%clk 0:01:44.5]} 66... Rxb3 {[%clk 0:00:09.9]}
67. Kxb3 {[%clk 0:01:44.8]} 67... e3 {[%clk 0:00:10.8]} 68. Kxa3 {[%clk
0:01:45.4]} 68... e2 {[%clk 0:00:11.4]} 69. Kb4 {[%clk 0:01:45.8]} 69... e1=Q+
{[%clk 0:00:12]} 70. Kc4 {[%clk 0:01:45.6]} 70... Qd1 {[%clk 0:00:12.8]} 71. Kc5
{[%clk 0:01:45.7]} 71... Ke5 {[%clk 0:00:13.7]} 72. Kc4 {[%clk 0:01:46.4]} 72...
Qd4+ {[%clk 0:00:13.9]} 73. Kb3 {[%clk 0:01:46.5]} 73... Qc5 {[%clk 0:00:14.3]}
74. Kb2 {[%clk 0:01:46.3]} 74... Kd4 {[%clk 0:00:15.2]} 75. Kb3 {[%clk
0:01:47.1]} 75... Kd3 {[%clk 0:00:15.6]} 76. Kb2 {[%clk 0:01:47.6]} 76... Qc2+
{[%clk 0:00:15.7]} 77. Ka3 {[%clk 0:01:48.4]} 77... Qb1 {[%clk 0:00:15.6]} 78.
Ka4 {[%clk 0:01:48.6]} 78... Kc4 {[%clk 0:00:16.5]} 79. Ka5 {[%clk 0:01:49.4]}
79... Qb5# {[%clk 0:00:16.8]} 0-1

[Event "Early-Titled-Tuesday-Blitz-March-12-2024"]
[Site "Chess.com"]
[Date "2024.03.12"]
[Round "9"]
[White "Statham_01"]
[Black "AsaHoffmann"]
[Result "1-0"]
[WhiteElo "2592"]
[BlackElo "2383"]
[TimeControl "180+1"]
[EndTime "9:42:22 PDT"]
[Termination "Statham_01 won by checkmate"]

1. Nc3 {[%clk 0:03:00.9]} 1... d6 {[%clk 0:02:54.8]} 2. e4 {[%clk 0:02:59.7]}
2... c6 {[%clk 0:02:51]} 3. d4 {[%clk 0:02:59.6]} 3... Nf6 {[%clk 0:02:49.2]} 4.
f4 {[%clk 0:02:59.5]} 4... Qa5 {[%clk 0:02:48.2]} 5. e5 {[%clk 0:02:59.5]} 5...
Ne4 {[%clk 0:02:47.4]} 6. Qf3 {[%clk 0:02:59.6]} 6... d5 {[%clk 0:02:46.5]} 7.
Bd3 {[%clk 0:02:59.4]} 7... f5 {[%clk 0:02:45.7]} 8. exf6 {[%clk 0:02:59]} 8...
Nxf6 {[%clk 0:02:36.9]} 9. Ne2 {[%clk 0:02:58.8]} 9... Bg4 {[%clk 0:02:35.9]}
10. Qe3 {[%clk 0:02:52.7]} 10... Bxe2 {[%clk 0:02:32.9]} 11. Qxe2 {[%clk
0:02:50.1]} 11... Qb6 {[%clk 0:02:30.7]} 12. Qe3 {[%clk 0:02:17]} 12... Nbd7
{[%clk 0:02:24.3]} 13. Bd2 {[%clk 0:02:15]} 13... O-O-O {[%clk 0:02:17.7]} 14.
Na4 {[%clk 0:01:58.6]} 14... Qc7 {[%clk 0:02:16.7]} 15. O-O {[%clk 0:01:57.9]}
15... Re8 {[%clk 0:02:13.1]} 16. f5 {[%clk 0:01:55.8]} 16... Qd6 {[%clk
0:01:57.7]} 17. a3 {[%clk 0:01:44.7]} 17... g6 {[%clk 0:01:55.1]} 18. h3 {[%clk
0:01:36]} 18... gxf5 {[%clk 0:01:50]} 19. Bb4 {[%clk 0:01:35.4]} 19... Qc7
{[%clk 0:01:49.4]} 20. Bxf5 {[%clk 0:01:34.2]} 20... Rg8 {[%clk 0:01:40.9]} 21.
Nc5 {[%clk 0:01:21.8]} 21... e5 {[%clk 0:01:34.4]} 22. Ne6 {[%clk 0:00:57.3]}
22... Qb6 {[%clk 0:01:21.9]} 23. Nxf8 {[%clk 0:00:55.6]} 23... Rexf8 {[%clk
0:01:16.7]} 24. Bxf8 {[%clk 0:00:54.6]} 24... Rxf8 {[%clk 0:01:12.4]} 25. Bxd7+
{[%clk 0:00:54.7]} 25... Kxd7 {[%clk 0:01:07.9]} 26. Qxe5 {[%clk 0:00:53.3]}
26... c5 {[%clk 0:00:42.5]} 27. dxc5 {[%clk 0:00:42.3]} 27... Qxc5+ {[%clk
0:00:42]} 28. Kh1 {[%clk 0:00:42.9]} 28... Qd6 {[%clk 0:00:40.9]} 29. Qf5+
{[%clk 0:00:39.6]} 29... Kc6 {[%clk 0:00:40]} 30. c4 {[%clk 0:00:29.7]} 30... d4
{[%clk 0:00:37.8]} 31. Rae1 {[%clk 0:00:24.7]} 31... Nd7 {[%clk 0:00:33.9]} 32.
Qe4+ {[%clk 0:00:18.3]} 32... Kc7 {[%clk 0:00:33.6]} 33. Rxf8 {[%clk 0:00:17.3]}
33... Qxf8 {[%clk 0:00:31.1]} 34. Qxd4 {[%clk 0:00:17.2]} 34... Qf5 {[%clk
0:00:27]} 35. Rd1 {[%clk 0:00:17.3]} 35... Nf6 {[%clk 0:00:24.1]} 36. Qd8+
{[%clk 0:00:16.7]} 36... Kc6 {[%clk 0:00:23.8]} 37. Qd6# {[%clk 0:00:16.9]} 1-0

[Event "Early-Titled-Tuesday-Blitz-March-12-2024"]
[Site "Chess.com"]
[Date "2024.03.12"]
[Round "9"]
[White "BilicVladimir"]
[Black "TanitoluwaAps116"]
[Result "0-1"]
[WhiteElo "2677"]
[BlackElo "2824"]
[TimeControl "180+1"]
[EndTime "9:42:25 PDT"]
[Termination "TanitoluwaAps116 won by checkmate"]

1. e4 {[%clk 0:03:00.9]} 1... c5 {[%clk 0:02:52.4]} 2. Nf3 {[%clk 0:03:01.5]}
2... e6 {[%clk 0:02:52.7]} 3. b3 {[%clk 0:03:01.3]} 3... Nc6 {[%clk 0:02:52.1]}
4. Bb2 {[%clk 0:03:01.5]} 4... d5 {[%clk 0:02:53]} 5. exd5 {[%clk 0:03:00.8]}
5... exd5 {[%clk 0:02:53.9]} 6. Bb5 {[%clk 0:03:00.8]} 6... Nf6 {[%clk
0:02:54.5]} 7. O-O {[%clk 0:03:00.6]} 7... Bd6 {[%clk 0:02:48.7]} 8. Re1+ {[%clk
0:02:53.7]} 8... Be6 {[%clk 0:02:46]} 9. Ne5 {[%clk 0:02:43.6]} 9... Rc8 {[%clk
0:02:27.2]} 10. Nxc6 {[%clk 0:02:42.6]} 10... bxc6 {[%clk 0:02:22.4]} 11. Bf1
{[%clk 0:02:33.9]} 11... O-O {[%clk 0:02:16.3]} 12. Nc3 {[%clk 0:02:29.8]} 12...
Bxh2+ {[%clk 0:01:46]} 13. Kxh2 {[%clk 0:02:29.2]} 13... Ng4+ {[%clk 0:01:46.9]}
14. Kg3 {[%clk 0:02:29.3]} 14... Qg5 {[%clk 0:01:19.3]} 15. f4 {[%clk
0:02:28.9]} 15... Qh6 {[%clk 0:00:41.3]} 16. Rxe6 {[%clk 0:02:20.5]} 16... Qh2+
{[%clk 0:00:39.3]} 17. Kxg4 {[%clk 0:02:15.8]} 17... fxe6 {[%clk 0:00:30.5]} 18.
Ne2 {[%clk 0:02:03.6]} 18... Rf5 {[%clk 0:00:18]} 19. Ng3 {[%clk 0:01:44.5]}
19... h5+ {[%clk 0:00:07.8]} 20. Nxh5 {[%clk 0:01:29.4]} 20... Rxh5 {[%clk
0:00:03.7]} 21. g3 {[%clk 0:01:21.3]} 21... Rf8 {[%clk 0:00:03.2]} 22. Kf3
{[%clk 0:01:16.4]} 22... e5 {[%clk 0:00:03.4]} 23. Bg2 {[%clk 0:00:35.6]} 23...
exf4 {[%clk 0:00:02.8]} 24. Qg1 {[%clk 0:00:20]} 24... Qxg3+ {[%clk 0:00:02]}
25. Ke2 {[%clk 0:00:19.9]} 25... f3+ {[%clk 0:00:02.6]} 26. Kd1 {[%clk
0:00:16.2]} 26... fxg2 {[%clk 0:00:02.9]} 27. Be5 {[%clk 0:00:11.4]} 27... Rf1+
{[%clk 0:00:02.4]} 28. Ke2 {[%clk 0:00:11]} 28... Qf3# {[%clk 0:00:02.4]} 0-1

[Event "Early-Titled-Tuesday-Blitz-March-12-2024"]
[Site "Chess.com"]
[Date "2024.03.12"]
[Round "9"]
[White "SaiAgni_98"]
[Black "Bkmzzzzz"]
[Result "1-0"]
[WhiteElo "2552"]
[BlackElo "2401"]
[TimeControl "180+1"]
[EndTime "9:42:27 PDT"]
[Termination "SaiAgni_98 won by checkmate"]

1. e4 {[%clk 0:03:00.9]} 1... d6 {[%clk 0:02:55.6]} 2. d4 {[%clk 0:02:59.8]}
2... Nf6 {[%clk 0:02:54.9]} 3. Nc3 {[%clk 0:02:54.3]} 3... e5 {[%clk 0:02:54.8]}
4. Nf3 {[%clk 0:02:47.2]} 4... Nbd7 {[%clk 0:02:54]} 5. Bc4 {[%clk 0:02:41.1]}
5... Be7 {[%clk 0:02:52.5]} 6. O-O {[%clk 0:02:38.8]} 6... O-O {[%clk
0:02:52.2]} 7. a4 {[%clk 0:02:39.2]} 7... c6 {[%clk 0:02:52]} 8. a5 {[%clk
0:02:39.7]} 8... Rb8 {[%clk 0:02:51.4]} 9. Re1 {[%clk 0:02:37.6]} 9... b5 {[%clk
0:02:51.1]} 10. axb6 {[%clk 0:02:37.7]} 10... axb6 {[%clk 0:02:52]} 11. Bb3
{[%clk 0:02:35.9]} 11... b5 {[%clk 0:02:51.7]} 12. Bg5 {[%clk 0:02:03.1]} 12...
h6 {[%clk 0:02:39.5]} 13. Bh4 {[%clk 0:02:01.1]} 13... Qc7 {[%clk 0:02:39.1]}
14. Bg3 {[%clk 0:01:54.1]} 14... Re8 {[%clk 0:02:38.2]} 15. Qd2 {[%clk
0:01:49.2]} 15... Bf8 {[%clk 0:02:22.2]} 16. Rad1 {[%clk 0:01:25]} 16... Bb7
{[%clk 0:01:37.9]} 17. dxe5 {[%clk 0:01:18.6]} 17... dxe5 {[%clk 0:01:25.3]} 18.
Nh4 {[%clk 0:01:18.3]} 18... Nc5 {[%clk 0:01:19.8]} 19. Nf5 {[%clk 0:01:17.4]}
19... b4 {[%clk 0:01:06.5]} 20. Na4 {[%clk 0:01:15.7]} 20... Ncxe4 {[%clk
0:01:05.4]} 21. Qe3 {[%clk 0:01:11.9]} 21... c5 {[%clk 0:01:01.5]} 22. Bh4
{[%clk 0:00:57.8]} 22... c4 {[%clk 0:00:48.7]} 23. Ba2 {[%clk 0:00:49]} 23...
Ra8 {[%clk 0:00:39.4]} 24. b3 {[%clk 0:00:45.5]} 24... c3 {[%clk 0:00:39.7]} 25.
Qh3 {[%clk 0:00:40.5]} 25... Bc8 {[%clk 0:00:30.7]} 26. Qf3 {[%clk 0:00:35.2]}
26... Bb7 {[%clk 0:00:20]} 27. Bxf6 {[%clk 0:00:32.1]} 27... Nxf6 {[%clk
0:00:19.7]} 28. Nxh6+ {[%clk 0:00:32.2]} 28... Kh7 {[%clk 0:00:16.1]} 29. Qf5+
{[%clk 0:00:30.8]} 29... Kxh6 {[%clk 0:00:16.1]} 30. Rd3 {[%clk 0:00:29.7]}
30... g6 {[%clk 0:00:11.6]} 31. Qxf6 {[%clk 0:00:29.4]} 31... Bc8 {[%clk
0:00:07]} 32. Re4 {[%clk 0:00:28.9]} 32... Kh5 {[%clk 0:00:03.5]} 33. Rh4#
{[%clk 0:00:28.8]} 1-0

[Event "Early-Titled-Tuesday-Blitz-March-12-2024"]
[Site "Chess.com"]
[Date "2024.03.12"]
[Round "9"]
[White "BeardedNM"]
[Black "ExchangeAB"]
[Result "1-0"]
[WhiteElo "2250"]
[BlackElo "2488"]
[TimeControl "180+1"]
[EndTime "9:42:32 PDT"]
[Termination "BeardedNM won on time"]

1. e4 {[%clk 0:03:00.9]} 1... c6 {[%clk 0:02:59.9]} 2. d4 {[%clk 0:03:00.3]}
2... d5 {[%clk 0:03:00.8]} 3. e5 {[%clk 0:03:00.8]} 3... Bf5 {[%clk 0:03:00.4]}
4. Nf3 {[%clk 0:03:01.3]} 4... e6 {[%clk 0:02:59.6]} 5. Be2 {[%clk 0:03:00.9]}
5... h6 {[%clk 0:02:58.4]} 6. O-O {[%clk 0:03:00.2]} 6... Ne7 {[%clk 0:02:59]}
7. Nbd2 {[%clk 0:02:59.4]} 7... Nd7 {[%clk 0:02:58.4]} 8. Nb3 {[%clk 0:02:58.9]}
8... g5 {[%clk 0:02:56.5]} 9. Ne1 {[%clk 0:02:56.8]} 9... Qc7 {[%clk 0:02:49.4]}
10. f4 {[%clk 0:02:56.7]} 10... c5 {[%clk 0:02:48.7]} 11. dxc5 {[%clk
0:02:41.6]} 11... Nxc5 {[%clk 0:02:34.4]} 12. fxg5 {[%clk 0:02:39.5]} 12... Ne4
{[%clk 0:02:29.2]} 13. Nd3 {[%clk 0:02:22]} 13... O-O-O {[%clk 0:02:25.5]} 14.
gxh6 {[%clk 0:02:11.3]} 14... Bxh6 {[%clk 0:02:24.1]} 15. Nd4 {[%clk 0:01:51.7]}
15... a6 {[%clk 0:02:10.3]} 16. c3 {[%clk 0:01:30.2]} 16... Rdg8 {[%clk
0:01:58.2]} 17. Bf3 {[%clk 0:01:17.1]} 17... Kb8 {[%clk 0:01:50.6]} 18. Bxh6
{[%clk 0:00:53.6]} 18... Rxh6 {[%clk 0:01:50.3]} 19. Rc1 {[%clk 0:00:51]} 19...
Nc6 {[%clk 0:01:22.4]} 20. Nxc6+ {[%clk 0:00:39.4]} 20... Qxc6 {[%clk 0:01:21]}
21. c4 {[%clk 0:00:37.7]} 21... dxc4 {[%clk 0:01:11.5]} 22. Nf2 {[%clk
0:00:33.1]} 22... Qb6 {[%clk 0:00:48.5]} 23. Rxc4 {[%clk 0:00:27.4]} 23... Nxf2
{[%clk 0:00:44.7]} 24. Rxf2 {[%clk 0:00:24.6]} 24... Rxh2 {[%clk 0:00:39.2]} 25.
Qd6+ {[%clk 0:00:11]} 25... Qxd6 {[%clk 0:00:38.1]} 26. exd6 {[%clk 0:00:11.9]}
26... Rhh8 {[%clk 0:00:34.3]} 27. Rc7 {[%clk 0:00:10.8]} 27... Rd8 {[%clk
0:00:15.6]} 28. Rxb7+ {[%clk 0:00:09.8]} 28... Kc8 {[%clk 0:00:15.9]} 29. Rf1
{[%clk 0:00:05.8]} 29... Rd7 {[%clk 0:00:04.3]} 30. Rc1+ {[%clk 0:00:05.5]} 1-0

[Event "Early-Titled-Tuesday-Blitz-March-12-2024"]
[Site "Chess.com"]
[Date "2024.03.12"]
[Round "9"]
[White "karinachess1"]
[Black "JoliyRoger"]
[Result "1-0"]
[WhiteElo "2614"]
[BlackElo "2431"]
[TimeControl "180+1"]
[EndTime "9:42:36 PDT"]
[Termination "karinachess1 won by checkmate"]

1. d4 {[%clk 0:03:00.9]} 1... d5 {[%clk 0:02:52.6]} 2. c4 {[%clk 0:03:01.1]}
2... e6 {[%clk 0:02:53]} 3. Nc3 {[%clk 0:03:01.4]} 3... c5 {[%clk 0:02:53.7]} 4.
cxd5 {[%clk 0:03:01.5]} 4... cxd4 {[%clk 0:02:54.3]} 5. Qa4+ {[%clk 0:03:01.6]}
5... Bd7 {[%clk 0:02:54.7]} 6. Qxd4 {[%clk 0:03:02]} 6... exd5 {[%clk
0:02:55.3]} 7. Qxd5 {[%clk 0:03:02.6]} 7... Nc6 {[%clk 0:02:55.9]} 8. Nf3 {[%clk
0:02:55.1]} 8... Nf6 {[%clk 0:02:56.3]} 9. Qd1 {[%clk 0:02:48.3]} 9... Bb4
{[%clk 0:02:56.6]} 10. Bd2 {[%clk 0:02:47.6]} 10... O-O {[%clk 0:02:56.3]} 11.
e3 {[%clk 0:02:46]} 11... Re8 {[%clk 0:02:52.7]} 12. Be2 {[%clk 0:02:40.3]}
12... Qe7 {[%clk 0:02:50.9]} 13. O-O {[%clk 0:02:36.6]} 13... Rad8 {[%clk
0:02:51.3]} 14. Qc2 {[%clk 0:02:37.1]} 14... Ba5 {[%clk 0:02:49.6]} 15. a3
{[%clk 0:02:36.5]} 15... Bc7 {[%clk 0:02:49.5]} 16. Nb5 {[%clk 0:02:13.4]} 16...
Bb8 {[%clk 0:02:47.9]} 17. Bc3 {[%clk 0:02:10]} 17... Ne4 {[%clk 0:02:41.1]} 18.
Nbd4 {[%clk 0:02:03.1]} 18... h5 {[%clk 0:02:29]} 19. Bd3 {[%clk 0:01:53.5]}
19... Nxc3 {[%clk 0:02:26.9]} 20. Qxc3 {[%clk 0:01:54.4]} 20... Ne5 {[%clk
0:02:16.8]} 21. Be2 {[%clk 0:01:41.2]} 21... Rc8 {[%clk 0:02:10]} 22. Qb3 {[%clk
0:01:37.2]} 22... Nxf3+ {[%clk 0:02:00.8]} 23. Bxf3 {[%clk 0:01:35.7]} 23... h4
{[%clk 0:01:50.6]} 24. Qxb7 {[%clk 0:01:25.6]} 24... Qe5 {[%clk 0:01:40.1]} 25.
g3 {[%clk 0:01:18.1]} 25... Bh3 {[%clk 0:01:37.4]} 26. Bg2 {[%clk 0:01:11.9]}
26... Rc7 {[%clk 0:01:29.5]} 27. Qf3 {[%clk 0:00:57.2]} 27... Bc8 {[%clk
0:01:25.7]} 28. Nc6 {[%clk 0:00:47.9]} 28... Qxb2 {[%clk 0:01:23.1]} 29. Rab1
{[%clk 0:00:44.5]} 29... Qc3 {[%clk 0:01:17.1]} 30. Rxb8 {[%clk 0:00:42.3]}
30... h3 {[%clk 0:01:16.6]} 31. Bh1 {[%clk 0:00:41.7]} 31... Qxa3 {[%clk
0:01:08.6]} 32. Nd4 {[%clk 0:00:32.5]} 32... Rc1 {[%clk 0:01:02.7]} 33. Rb1
{[%clk 0:00:32.3]} 33... Rxb1 {[%clk 0:00:56]} 34. Rxb1 {[%clk 0:00:32.1]} 34...
Ba6 {[%clk 0:00:56.9]} 35. Qd1 {[%clk 0:00:22.5]} 35... Rxe3 {[%clk 0:00:47.6]}
36. Nc2 {[%clk 0:00:16.5]} 36... Rxg3+ {[%clk 0:00:40.2]} 37. hxg3 {[%clk
0:00:16.8]} 37... Qe7 {[%clk 0:00:35.2]} 38. Ne3 {[%clk 0:00:14.6]} 38... g6
{[%clk 0:00:29.7]} 39. Qd4 {[%clk 0:00:14.2]} 39... Qc7 {[%clk 0:00:27.2]} 40.
Nd5 {[%clk 0:00:12.7]} 40... Qc2 {[%clk 0:00:25.1]} 41. Rb8+ {[%clk 0:00:10.6]}
41... Kh7 {[%clk 0:00:24.8]} 42. Qh8# {[%clk 0:00:09.9]} 1-0

[Event "Early-Titled-Tuesday-Blitz-March-12-2024"]
[Site "Chess.com"]
[Date "2024.03.12"]
[Round "9"]
[White "Carlos-Godoy"]
[Black "crazy_m_attack"]
[Result "1-0"]
[WhiteElo "2080"]
[BlackElo "2449"]
[TimeControl "180+1"]
[EndTime "9:42:37 PDT"]
[Termination "Carlos-Godoy won by resignation"]

1. f4 {[%clk 0:02:40.4]} 1... d5 {[%clk 0:02:56.4]} 2. Nf3 {[%clk 0:02:39.6]}
2... Nf6 {[%clk 0:02:56.5]} 3. g3 {[%clk 0:02:39.4]} 3... g6 {[%clk 0:02:56.7]}
4. Bg2 {[%clk 0:02:39.2]} 4... Bg7 {[%clk 0:02:57.1]} 5. O-O {[%clk 0:02:39]}
5... O-O {[%clk 0:02:57.3]} 6. d3 {[%clk 0:02:39]} 6... c6 {[%clk 0:02:50.8]} 7.
c3 {[%clk 0:02:35.2]} 7... Nbd7 {[%clk 0:02:44.4]} 8. Qe1 {[%clk 0:02:34.4]}
8... Qb6+ {[%clk 0:02:28]} 9. Kh1 {[%clk 0:02:31.2]} 9... Re8 {[%clk 0:02:27.7]}
10. e4 {[%clk 0:02:30.4]} 10... dxe4 {[%clk 0:02:24.2]} 11. dxe4 {[%clk
0:02:30]} 11... e5 {[%clk 0:02:23.3]} 12. f5 {[%clk 0:02:29]} 12... Qa6 {[%clk
0:01:55.3]} 13. fxg6 {[%clk 0:02:21.2]} 13... fxg6 {[%clk 0:01:46.1]} 14. Bg5
{[%clk 0:02:19.5]} 14... Nc5 {[%clk 0:01:28.5]} 15. Nbd2 {[%clk 0:01:56.6]}
15... Nd3 {[%clk 0:01:09.2]} 16. Qe2 {[%clk 0:01:56.2]} 16... Bg4 {[%clk
0:00:41.9]} 17. Nb3 {[%clk 0:01:44.4]} 17... Rad8 {[%clk 0:00:17.3]} 18. h3
{[%clk 0:01:36.2]} 18... Be6 {[%clk 0:00:10.1]} 19. Nxe5 {[%clk 0:01:24.5]}
19... Nxe5 {[%clk 0:00:06.9]} 20. Qxa6 {[%clk 0:01:25.1]} 20... bxa6 {[%clk
0:00:07.2]} 21. Bxf6 {[%clk 0:01:25.7]} 21... Bc4 {[%clk 0:00:07.5]} 22. Rf2
{[%clk 0:01:24.1]} 22... Nd3 {[%clk 0:00:03.1]} 23. Rff1 {[%clk 0:01:15.6]}
23... Bxf6 {[%clk 0:00:02.7]} 24. Rxf6 {[%clk 0:01:13.7]} 24... Nxb2 {[%clk
0:00:02.5]} 25. Rxc6 {[%clk 0:01:13.2]} 25... Bb5 {[%clk 0:00:03.1]} 26. Rc7
{[%clk 0:01:12.3]} 26... Nd3 {[%clk 0:00:03.2]} 27. Nd4 {[%clk 0:01:09]} 27...
Nf2+ {[%clk 0:00:02.4]} 28. Kg1 {[%clk 0:01:08.2]} 28... Nxe4 {[%clk 0:00:03.1]}
29. c4 {[%clk 0:01:03.5]} 29... Bd7 {[%clk 0:00:02.1]} 30. Re1 {[%clk
0:00:57.4]} 30... Nf6 {[%clk 0:00:01.5]} 31. Rxe8+ {[%clk 0:00:54.7]} 31... Rxe8
{[%clk 0:00:02.4]} 32. c5 {[%clk 0:00:52.5]} 32... Re1+ {[%clk 0:00:02.8]} 33.
Kf2 {[%clk 0:00:51.8]} 33... Rd1 {[%clk 0:00:03.7]} 34. Nf3 {[%clk 0:00:45.8]}
34... Rc1 {[%clk 0:00:03.7]} 35. Ne5 {[%clk 0:00:44.3]} 35... Bf5 {[%clk
0:00:03.8]} 36. g4 {[%clk 0:00:41.4]} 36... Be4 {[%clk 0:00:04.3]} 37. g5 {[%clk
0:00:39.5]} 37... Rc2+ {[%clk 0:00:02.3]} 38. Ke3 {[%clk 0:00:38.3]} 38... Bxg2
{[%clk 0:00:01.8]} 39. gxf6 {[%clk 0:00:38.2]} 39... Bd5 {[%clk 0:00:02.1]} 40.
f7+ {[%clk 0:00:36.1]} 40... Kg7 {[%clk 0:00:01.7]} 41. Rc8 {[%clk 0:00:33.5]}
41... Be6 {[%clk 0:00:02.1]} 1-0